fUST/lending_fUST_20260526
["ID","MTS","AMOUNT","RATE_DAILY","PERIOD"]
[422998914,1779732644000,-500.0,9.041e-05,2]
[422998913,1779732644000,-558.55,9.041e-05,2]
[422998891,1779732644000,-500.0,9.041e-05,2]
[422998920,1779732644000,-795.51,9.041e-05,2]
[422998921,1779732644000,-500.0,9.041e-05,2]
[422998902,1779732644000,-500.0,9.041e-05,2]
[422998904,1779732644000,-500.0,9.041e-05,2]
[422998901,1779732644000,-500.0,9.041e-05,2]
[422998911,1779732644000,-500.0,9.041e-05,2]
[422998910,1779732644000,-500.0,9.041e-05,2]
[422998976,1779732645000,-654.08,9.041e-05,2]
[422998981,1779732645000,-2361.28,9.041e-05,2]
[422998997,1779732645000,-1880.52,9.041e-05,2]
[422998993,1779732645000,-500.0,9.041e-05,2]
[422998990,1779732645000,-1928.73,9.041e-05,2]
[422998999,1779732645000,-4101.88,9.041e-05,2]
[422998989,1779732645000,-787.66,9.041e-05,2]
[422998994,1779732645000,-500.0,9.041e-05,2]
[422998986,1779732645000,-500.0,9.041e-05,2]
[422998998,1779732645000,-500.0,9.041e-05,2]
[422998982,1779732645000,-500.0,9.041e-05,2]
[422998987,1779732645000,-500.0,9.041e-05,2]
[422998991,1779732645000,-6186.68,9.041e-05,2]
[422998996,1779732645000,-897.33,9.041e-05,2]
[422998992,1779732645000,-500.0,9.041e-05,2]
[422998995,1779732645000,-500.0,9.041e-05,2]
[422999000,1779732645000,-1272.66,9.041e-05,2]
[422999002,1779732645000,-500.0,9.041e-05,2]
[422999003,1779732645000,-500.0,9.041e-05,2]
[422999012,1779732645000,-1364.75,9.041e-05,2]
[422999011,1779732645000,-562.44544963,9.041e-05,2]
[422999008,1779732645000,-715.24,9.041e-05,2]
[422998977,1779732645000,-500.0,9.041e-05,2]
[422999009,1779732645000,-500.0,9.041e-05,2]
[422998988,1779732645000,-1161.95,9.041e-05,2]
[422999001,1779732645000,-500.0,9.041e-05,2]
[422998968,1779732645000,-500.0,9.041e-05,2]
[422998978,1779732645000,-2463.54,9.041e-05,2]
[422999007,1779732645000,-2211.17,9.041e-05,2]
[422998959,1779732645000,-769.72,9.041e-05,2]
[422998956,1779732645000,-544.08,9.041e-05,2]
[422998964,1779732645000,-2112.19,9.041e-05,2]
[422998954,1779732645000,-500.0,9.041e-05,2]
[422998961,1779732645000,-500.0,9.041e-05,2]
[422998957,1779732645000,-500.0,9.041e-05,2]
[422998962,1779732645000,-552.66,9.041e-05,2]
[422998958,1779732645000,-1143.99,9.041e-05,2]
[422998960,1779732645000,-836.7,9.041e-05,2]
[422998963,1779732645000,-526.15,9.041e-05,2]
[422998955,1779732645000,-500.0,9.041e-05,2]
[422998975,1779732645000,-500.0,9.041e-05,2]
[422998971,1779732645000,-500.0,9.041e-05,2]
[422998966,1779732645000,-500.0,9.041e-05,2]
[422998969,1779732645000,-500.0,9.041e-05,2]
[422998967,1779732645000,-520.01,9.041e-05,2]
[422998965,1779732645000,-500.0,9.041e-05,2]
[422998973,1779732645000,-500.0,9.041e-05,2]
[422998983,1779732645000,-5794.63,9.041e-05,2]
[422998972,1779732645000,-500.0,9.041e-05,2]
[422998984,1779732645000,-1470.28,9.041e-05,2]
[422998974,1779732645000,-500.0,9.041e-05,2]
[422998985,1779732645000,-5554.87,9.041e-05,2]
[422998979,1779732645000,-500.0,9.041e-05,2]
[422998980,1779732645000,-500.0,9.041e-05,2]
[422998970,1779732645000,-476.3340373,9.041e-05,2]
[422999006,1779732645000,-3280.51,9.041e-05,2]
[422999036,1779732645000,-631.23,9.041e-05,2]
[422999010,1779732645000,-500.0,9.041e-05,2]
[422999051,1779732645000,-500.0,9.041e-05,2]
[422999053,1779732645000,-2932.66,9.041e-05,2]
[422999004,1779732645000,-500.0,9.041e-05,2]
[422999040,1779732645000,-2752.67,9.041e-05,2]
[422999054,1779732645000,-500.0,9.041e-05,2]
[422999043,1779732645000,-640.11,9.041e-05,2]
[422999044,1779732645000,-500.0,9.041e-05,2]
[422999045,1779732645000,-5908.59,9.041e-05,2]
[422999046,1779732645000,-500.0,9.041e-05,2]
[422999047,1779732645000,-500.0,9.041e-05,2]
[422999048,1779732645000,-2109.64,9.041e-05,2]
[422999049,1779732645000,-2559.81,9.041e-05,2]
[422999050,1779732645000,-500.0,9.041e-05,2]
[422999055,1779732645000,-500.0,9.041e-05,2]
[422999060,1779732645000,-766.59,9.041e-05,2]
[422999057,1779732645000,-3468.24,9.041e-05,2]
[422999059,1779732645000,-1359.36,9.041e-05,2]
[422999058,1779732645000,-500.0,9.041e-05,2]
[422999062,1779732645000,-500.0,9.041e-05,2]
[422999066,1779732645000,-14292.54651195,9.041e-05,2]
[422999063,1779732645000,-960.18,9.041e-05,2]
[422999056,1779732645000,-595.19,9.041e-05,2]
[422999061,1779732645000,-500.0,9.041e-05,2]
[422999064,1779732645000,-500.0,9.041e-05,2]
[422999065,1779732645000,-3675.82,9.041e-05,2]
[422999052,1779732645000,-1950.61,9.041e-05,2]
[422999041,1779732645000,-1527.77,9.041e-05,2]
[422999042,1779732645000,-500.0,9.041e-05,2]
[422999031,1779732645000,-2467.37,9.041e-05,2]
[422999005,1779732645000,-500.0,9.041e-05,2]
[422999014,1779732645000,-500.0,9.041e-05,2]
[422999025,1779732645000,-2000.69,9.041e-05,2]
[422999026,1779732645000,-612.18,9.041e-05,2]
[422999024,1779732645000,-3176.42,9.041e-05,2]
[422999016,1779732645000,-639.88569246,9.041e-05,2]
[422999013,1779732645000,-537.42,9.041e-05,2]
[422999015,1779732645000,-933.05,9.041e-05,2]
[422999032,1779732645000,-556.16,9.041e-05,2]
[422999017,1779732645000,-8629.03,9.041e-05,2]
[422999021,1779732645000,-500.0,9.041e-05,2]
[422999023,1779732645000,-500.0,9.041e-05,2]
[422999018,1779732645000,-504.67,9.041e-05,2]
[422999022,1779732645000,-760.06,9.041e-05,2]
[422999030,1779732645000,-500.0,9.041e-05,2]
[422999019,1779732645000,-500.0,9.041e-05,2]
[422999034,1779732645000,-936.09,9.041e-05,2]
[422999033,1779732645000,-5893.46,9.041e-05,2]
[422999035,1779732645000,-3024.64,9.041e-05,2]
[422999037,1779732645000,-3439.31,9.041e-05,2]
[422999028,1779732645000,-500.0,9.041e-05,2]
[422999038,1779732645000,-8328.86,9.041e-05,2]
[422999039,1779732645000,-2982.4,9.041e-05,2]
[422999027,1779732645000,-3044.56,9.041e-05,2]
[422999020,1779732645000,-1177.72,9.041e-05,2]
[422999029,1779732645000,-3036.69,9.041e-05,2]
[422999079,1779732646000,-1193.58762977,9.1e-05,2]
[422999071,1779732646000,-809.89,9.041e-05,2]
[422999068,1779732646000,-500.0,9.041e-05,2]
[422999069,1779732646000,-2397.55,9.041e-05,2]
[422999072,1779732646000,-296.2354861,9.041e-05,2]
[422999067,1779732646000,-30191.80348805,9.041e-05,2]
[422999073,1779732646000,-1436.91,9.041e-05,2]
[422999074,1779732646000,-500.0,9.041e-05,2]
[422999077,1779732646000,-1237.75015642,9.1e-05,2]
[422999070,1779732646000,-383.08414733,9.041e-05,2]
[422999075,1779732646000,-1000.0,9.042e-05,2]
[422999083,1779732646000,-1237.75015642,9.2e-05,2]
[422999084,1779732646000,-1193.58762977,9.2e-05,2]
[422999087,1779732646000,-141.5969915,9.265e-05,7]
[422999080,1779732646000,-1193.58762977,9.1e-05,2]
[422999085,1779732646000,-165.40655804,9.265e-05,7]
[422999082,1779732646000,-162.26958509,9.166e-05,7]
[422999086,1779732646000,-199.43574663,9.265e-05,2]
[422999081,1779732646000,-10000.0,9.123e-05,2]
[422999076,1779732646000,-492.0,9.042e-05,2]
[422999078,1779732646000,-1237.75015642,9.1e-05,2]
[422999090,1779732647000,-35.37690956,9.265e-05,7]
[422999091,1779732647000,-143.59309044,9.265e-05,7]
[422999089,1779732647000,-250.0,6.892e-05,2]
[422999398,1779733807000,5000.0,5.005e-05,2]
[422999430,1779733832000,-5000.0,5.074e-05,2]
[422999432,1779733832000,-182.20240826,5.126e-05,2]
[422999434,1779733832000,-949.30301227,5.126e-05,2]
[422999461,1779733838000,-364.90984899,5.332e-05,2]
[422999456,1779733838000,-17.49457947,5.126e-05,2]
[422999457,1779733838000,-347.97923342,5.127e-05,2]
[422999458,1779733838000,-192.114877,5.131e-05,2]
[422999460,1779733838000,-500.0,5.332e-05,2]
[422999463,1779733838000,-594.62179017,5.332e-05,2]
[422999466,1779733838000,-300.0,5.333e-05,2]
[422999467,1779733838000,-300.0,5.333e-05,2]
[422999468,1779733838000,-300.0,5.333e-05,2]
[422999469,1779733838000,-300.0,5.333e-05,2]
[422999474,1779733838000,-300.0,5.333e-05,2]
[422999471,1779733838000,-300.0,5.333e-05,2]
[422999472,1779733838000,-300.0,5.333e-05,2]
[422999465,1779733838000,-500.0,5.332e-05,2]
[422999470,1779733838000,-300.0,5.333e-05,2]
[422999500,1779733839000,-891.00876014,5.505e-05,2]
[422999502,1779733839000,-1706.68488033,5.505e-05,2]
[422999492,1779733839000,-869.32395679,5.502e-05,2]
[422999491,1779733839000,-869.32395679,5.502e-05,2]
[422999495,1779733839000,-869.32395679,5.502e-05,2]
[422999496,1779733839000,-869.32395679,5.502e-05,2]
[422999494,1779733839000,-869.32395679,5.502e-05,2]
[422999499,1779733839000,-869.32395679,5.502e-05,2]
[422999497,1779733839000,-869.32395679,5.502e-05,2]
[422999498,1779733839000,-869.32395679,5.502e-05,2]
[422999503,1779733839000,-3308.27507114,5.505e-05,2]
[422999493,1779733839000,-869.32395679,5.502e-05,2]
[422999501,1779733839000,-1706.68488033,5.505e-05,2]
[422999487,1779733839000,-869.32395679,5.502e-05,2]
[422999489,1779733839000,-869.32395679,5.502e-05,2]
[422999481,1779733839000,-300.0,5.333e-05,2]
[422999480,1779733839000,-300.0,5.333e-05,2]
[422999479,1779733839000,-300.0,5.333e-05,2]
[422999477,1779733839000,-300.0,5.333e-05,2]
[422999476,1779733839000,-300.0,5.333e-05,2]
[422999475,1779733839000,-300.0,5.333e-05,2]
[422999485,1779733839000,-869.32395679,5.502e-05,2]
[422999486,1779733839000,-869.32395679,5.502e-05,2]
[422999483,1779733839000,-869.32395679,5.502e-05,2]
[422999488,1779733839000,-869.32395679,5.502e-05,2]
[422999507,1779733839000,-4052.27667827,5.505e-05,2]
[422999484,1779733839000,-869.32395679,5.502e-05,2]
[422999490,1779733839000,-869.32395679,5.502e-05,2]
[422999506,1779733839000,-3680.27587465,5.505e-05,2]
[422999478,1779733839000,-300.0,5.333e-05,2]
[422999504,1779733839000,-3308.27507114,5.505e-05,2]
[422999505,1779733839000,-3680.27587465,5.505e-05,2]
[422999533,1779733839000,-837.82014782,8.019e-05,2]
[422999532,1779733839000,-843300.66635994,8.019e-05,2]
[422999534,1779733839000,-32518.50860366,8.019e-05,2]
[422999531,1779733839000,-537.6845,8.014e-05,2]
[422999535,1779733839000,-723.67648681,8.019e-05,2]
[422999528,1779733839000,-151.0,8.014e-05,2]
[422999530,1779733839000,-320.21541684,8.014e-05,2]
[422999529,1779733839000,-162.380719,8.014e-05,2]
[422999527,1779733839000,-1708.03636809,8.003e-05,5]
[422999522,1779733839000,-1000.0,7.963e-05,2]
[422999517,1779733839000,-410.61549543,7.127e-05,2]
[422999518,1779733839000,-1000.0,7.239e-05,2]
[422999520,1779733839000,-4397.91104026,7.4e-05,2]
[422999482,1779733839000,-600.0,5.439e-05,2]
[422999521,1779733839000,-500.0,7.688e-05,2]
[422999509,1779733839000,-4098.4867407,5.564e-05,2]
[422999510,1779733839000,-4098.4867407,5.564e-05,2]
[422999511,1779733839000,-192.114877,5.672e-05,2]
[422999512,1779733839000,-720.0,5.983e-05,2]
[422999508,1779733839000,-4052.27667827,5.505e-05,2]
[422999513,1779733839000,-192.114877,6.212e-05,2]
[422999514,1779733839000,-864.0,6.581e-05,2]
[422999524,1779733839000,-474.948,7.963e-05,2]
[422999525,1779733839000,-335.00843379,8e-05,2]
[422999515,1779733839000,-941.57350931,6.849e-05,2]
[422999519,1779733839000,-4397.91104026,7.4e-05,2]
[422999526,1779733839000,-335.00843374,8e-05,2]
[422999523,1779733839000,-244.0,7.963e-05,2]
[422999516,1779733839000,-3762.52774319,7.049e-05,2]
[422999553,1779733844000,333.0,0.00017808,120]
[422999555,1779733847000,-900.93573704,5.502e-05,2]
[422999558,1779733847000,-900.93573704,5.502e-05,2]
[422999559,1779733847000,-900.93573704,5.502e-05,2]
[422999557,1779733847000,-900.93573704,5.502e-05,2]
[422999554,1779733847000,-900.93573704,5.502e-05,2]
[422999556,1779733847000,-900.93573704,5.502e-05,2]
[422999561,1779733847000,-900.93573704,5.502e-05,2]
[422999562,1779733847000,-900.93573704,5.502e-05,2]
[422999563,1779733847000,-900.93573704,5.502e-05,2]
[422999564,1779733847000,-900.93573704,5.502e-05,2]
[422999565,1779733847000,-42205.31806194,8.019e-05,2]
[422999560,1779733847000,-900.93573704,5.502e-05,2]
[422999566,1779733847000,-2689.88991821,8.019e-05,2]
[422999567,1779733873000,-500.0,5.502e-05,2]
[422999568,1779733890000,-527.73410005,5.502e-05,2]
[422999569,1779733907000,-516.24889429,5.555e-05,2]
[422999570,1779733924000,-527.73410005,5.555e-05,2]
[422999571,1779733960000,4409.34864327,0.00015,30]
[422999574,1779734176000,500.0,0.000178,120]
[422999575,1779734180000,500.0,0.000178,120]
[422999576,1779734195000,696.98,0.000178,120]
[422999582,1779734931000,2435.378491,5.005e-05,2]
[422999584,1779734988000,5000.0,5.005e-05,2]
[422999585,1779735011000,5000.0,5.005e-05,2]
[422999590,1779735032000,5000.0,5.005e-05,2]
[422999628,1779735034000,-378.86148432,5.101e-05,2]
[422999641,1779735034000,-616.53117358,6.567e-05,2]
[422999642,1779735034000,-616.53117358,6.567e-05,2]
[422999639,1779735034000,-616.53117358,6.567e-05,2]
[422999630,1779735034000,-300.0,6.566e-05,2]
[422999632,1779735034000,-300.0,6.566e-05,2]
[422999644,1779735034000,-616.53117358,6.567e-05,2]
[422999634,1779735034000,-300.0,6.566e-05,2]
[422999637,1779735034000,-531.0,6.566e-05,2]
[422999635,1779735034000,-300.0,6.566e-05,2]
[422999648,1779735034000,-392.51735222,6.567e-05,2]
[422999646,1779735034000,-224.01382136,6.567e-05,2]
[422999650,1779735034000,-484.34591417,6.567e-05,2]
[422999665,1779735037000,-132.18525941,6.567e-05,2]
[422999667,1779735037000,-435.9337729,6.567e-05,2]
[422999666,1779735037000,-180.59740068,6.567e-05,2]
[422999669,1779735037000,-616.53117358,6.567e-05,2]
[422999668,1779735037000,-616.53117358,6.567e-05,2]
[422999672,1779735037000,-120.76713043,6.567e-05,2]
[422999671,1779735037000,-616.53117358,6.567e-05,2]
[422999673,1779735037000,-495.76404315,6.567e-05,2]
[422999675,1779735037000,-156.59353748,6.567e-05,2]
[422999674,1779735037000,-616.53117358,6.567e-05,2]
[422999670,1779735037000,-616.53117358,6.567e-05,2]
[422999676,1779735038000,-459.9376361,6.567e-05,2]
[422999679,1779735038000,-722.90189019,6.567e-05,2]
[422999677,1779735038000,-616.53117358,6.567e-05,2]
[422999682,1779735038000,-722.90189019,6.567e-05,2]
[422999678,1779735038000,-616.53117358,6.567e-05,2]
[422999681,1779735038000,-722.90189019,6.567e-05,2]
[422999680,1779735038000,-722.90189019,6.567e-05,2]
[422999685,1779735038000,-1377684.97252332,6.568e-05,2]
[422999688,1779735038000,-21847.85206328,6.568e-05,2]
[422999689,1779735038000,-8540.47415794,6.568e-05,2]
[422999691,1779735038000,-172308.15825755,6.568e-05,2]
[422999690,1779735038000,-2201.66351195,6.568e-05,2]
[422999683,1779735038000,-63669.66526534,6.568e-05,2]
[422999687,1779735038000,-938459.84480209,6.568e-05,2]
[422999696,1779735040000,-2208.71175107,6.568e-05,2]
[422999695,1779735040000,-5703.33613849,6.568e-05,2]
[422999693,1779735040000,-827.55422988,6.568e-05,2]
[422999694,1779735040000,-5959.10783526,6.568e-05,2]
[422999703,1779735043000,-685.0,6.568e-05,2]
[422999728,1779735046000,-37228.57923803,6.568e-05,2]
[422999727,1779735046000,-56348.6351325,6.568e-05,2]
[422999779,1779736231000,-387.165,5.892e-05,2]
[422999780,1779736231000,-679.45363298,5.892e-05,2]
[422999794,1779736231000,-300.0,5.951e-05,2]
[422999792,1779736231000,-1765.27145916,5.892e-05,2]
[422999776,1779736231000,-2168.10990786,5.892e-05,2]
[422999825,1779736232000,-290.62497973,5.953e-05,2]
[422999821,1779736232000,-500.0,5.953e-05,2]
[422999823,1779736232000,-500.0,5.953e-05,2]
[422999813,1779736232000,-500.0,5.953e-05,2]
[422999811,1779736232000,-500.0,5.953e-05,2]
[422999807,1779736232000,-500.0,5.953e-05,2]
[422999796,1779736232000,-300.0,5.951e-05,2]
[422999805,1779736232000,-204.55110837,5.953e-05,2]
[422999803,1779736232000,-401.57482052,5.953e-05,2]
[422999802,1779736232000,-300.0,5.952e-05,2]
[422999800,1779736232000,-1200.0,5.952e-05,2]
[422999798,1779736232000,-1200.0,5.951e-05,2]
[422999827,1779736232000,-209.37502027,5.953e-05,2]
[422999817,1779736232000,-369.36421013,5.953e-05,2]
[422999809,1779736232000,-500.0,5.953e-05,2]
[422999819,1779736232000,-130.63578987,5.953e-05,2]
[422999853,1779736232000,-451.60328126,5.953e-05,2]
[422999815,1779736232000,-318.79840182,5.953e-05,2]
[422999841,1779736232000,-500.0,5.953e-05,2]
[422999850,1779736232000,-398.04225292,5.953e-05,2]
[422999846,1779736232000,-579.42512185,5.953e-05,2]
[422999852,1779736232000,-500.0,5.953e-05,2]
[422999848,1779736232000,-101.95774708,5.953e-05,2]
[422999844,1779736232000,-500.0,5.953e-05,2]
[422999839,1779736232000,-532.45712349,5.953e-05,2]
[422999837,1779736232000,-500.0,5.953e-05,2]
[422999833,1779736232000,-532.72182746,5.953e-05,2]
[422999835,1779736232000,-500.0,5.953e-05,2]
[422999831,1779736232000,-500.0,5.953e-05,2]
[422999829,1779736232000,-500.0,5.953e-05,2]
[422999842,1779736232000,-500.0,5.953e-05,2]
[422999935,1779736238000,-500.0,5.953e-05,2]
[422999927,1779736238000,-500.0,5.953e-05,2]
[422999928,1779736238000,-500.0,5.953e-05,2]
[422999931,1779736238000,-500.0,5.953e-05,2]
[422999934,1779736238000,-500.0,5.953e-05,2]
[422999933,1779736238000,-500.0,5.953e-05,2]
[422999943,1779736238000,-500.0,5.953e-05,2]
[422999932,1779736238000,-500.0,5.953e-05,2]
[422999940,1779736238000,-500.0,5.953e-05,2]
[422999936,1779736238000,-500.0,5.953e-05,2]
[422999937,1779736238000,-500.0,5.953e-05,2]
[422999939,1779736238000,-500.0,5.953e-05,2]
[422999942,1779736238000,-500.0,5.953e-05,2]
[422999923,1779736238000,-500.0,5.953e-05,2]
[422999938,1779736238000,-500.0,5.953e-05,2]
[422999924,1779736238000,-500.0,5.953e-05,2]
[422999915,1779736238000,-500.0,5.953e-05,2]
[422999930,1779736238000,-500.0,5.953e-05,2]
[422999909,1779736238000,-48.39671874,5.953e-05,2]
[422999941,1779736238000,-500.0,5.953e-05,2]
[422999911,1779736238000,-500.0,5.953e-05,2]
[422999914,1779736238000,-500.0,5.953e-05,2]
[422999917,1779736238000,-500.0,5.953e-05,2]
[422999910,1779736238000,-500.0,5.953e-05,2]
[422999913,1779736238000,-500.0,5.953e-05,2]
[422999916,1779736238000,-500.0,5.953e-05,2]
[422999912,1779736238000,-500.0,5.953e-05,2]
[422999918,1779736238000,-500.0,5.953e-05,2]
[422999920,1779736238000,-500.0,5.953e-05,2]
[422999922,1779736238000,-599.26540351,5.953e-05,2]
[422999919,1779736238000,-500.0,5.953e-05,2]
[422999929,1779736238000,-500.0,5.953e-05,2]
[422999921,1779736238000,-500.0,5.953e-05,2]
[422999926,1779736238000,-500.0,5.953e-05,2]
[422999945,1779736238000,-500.0,5.953e-05,2]
[422999925,1779736238000,-500.0,5.953e-05,2]
[422999948,1779736238000,-500.0,5.953e-05,2]
[422999961,1779736238000,-233.3248811,6.567e-05,2]
[422999964,1779736238000,-13945.1865241,6.567e-05,2]
[422999968,1779736238000,-300.0,6.924e-05,2]
[422999970,1779736238000,-300.0,6.924e-05,2]
[422999972,1779736238000,-300.0,6.924e-05,2]
[422999971,1779736238000,-300.0,6.924e-05,2]
[422999973,1779736238000,-300.0,6.924e-05,2]
[422999969,1779736238000,-300.0,6.924e-05,2]
[422999976,1779736238000,-300.0,6.924e-05,2]
[422999974,1779736238000,-300.0,6.924e-05,2]
[422999975,1779736238000,-300.0,6.924e-05,2]
[422999978,1779736238000,-300.0,6.924e-05,2]
[422999977,1779736238000,-300.0,6.924e-05,2]
[422999980,1779736238000,-300.0,6.924e-05,2]
[422999944,1779736238000,-500.0,5.953e-05,2]
[422999963,1779736238000,-44008.1059968,6.567e-05,2]
[422999962,1779736238000,-890.3751205,6.567e-05,2]
[422999979,1779736238000,-300.0,6.924e-05,2]
[422999959,1779736238000,-1200.0,6.546e-05,2]
[422999965,1779736238000,-789.081387,6.659e-05,2]
[422999949,1779736238000,-500.0,5.953e-05,2]
[422999946,1779736238000,-500.0,5.953e-05,2]
[422999947,1779736238000,-500.0,5.953e-05,2]
[422999951,1779736238000,-307.67708294,5.953e-05,2]
[422999952,1779736238000,-789.081387,6.142e-05,2]
[422999954,1779736238000,-326.0270599,6.306e-05,2]
[422999950,1779736238000,-500.0,5.953e-05,2]
[422999956,1779736238000,-789.081387,6.401e-05,2]
[422999966,1779736238000,-789.081387,6.918e-05,2]
[422999960,1779736238000,-420.0,6.547e-05,2]
[422999958,1779736238000,-420.0,6.546e-05,2]
[422999955,1779736238000,-223.97432955,6.336e-05,2]
[422999957,1779736238000,-420.0,6.546e-05,2]
[422999953,1779736238000,-456.6237702,6.306e-05,2]
[422999967,1779736238000,-300.0,6.924e-05,2]
[423000021,1779736239000,-485.83997625,8.219e-05,2]
[423000020,1779736239000,-500.0,8.219e-05,2]
[423000039,1779736239000,-386.47428833,8.219e-05,2]
[423000032,1779736239000,-500.0,8.219e-05,2]
[423000031,1779736239000,-474.90946909,8.219e-05,2]
[423000013,1779736239000,-500.0,8.219e-05,2]
[423000029,1779736239000,-500.0,8.219e-05,2]
[423000019,1779736239000,-500.0,8.219e-05,2]
[423000015,1779736239000,-500.0,8.219e-05,2]
[423000014,1779736239000,-235.59086923,8.219e-05,2]
[423000017,1779736239000,-871.63,8.219e-05,2]
[423000011,1779736239000,-500.0,8.219e-05,2]
[423000030,1779736239000,-500.0,8.219e-05,2]
[423000027,1779736239000,-500.0,8.219e-05,2]
[423000037,1779736239000,-500.0,8.219e-05,2]
[423000022,1779736239000,-500.0,8.219e-05,2]
[423000025,1779736239000,-500.0,8.219e-05,2]
[423000026,1779736239000,-500.0,8.219e-05,2]
[423000024,1779736239000,-993.56,8.219e-05,2]
[423000028,1779736239000,-500.0,8.219e-05,2]
[423000041,1779736239000,-501.43716303,8.219e-05,2]
[423000045,1779736239000,-500.0,8.219e-05,2]
[423000033,1779736239000,-500.0,8.219e-05,2]
[423000035,1779736239000,-500.0,8.219e-05,2]
[423000034,1779736239000,-500.0,8.219e-05,2]
[423000046,1779736239000,-500.0,8.219e-05,2]
[423000036,1779736239000,-293.13706153,8.219e-05,2]
[423000012,1779736239000,-2766.3961,8.219e-05,2]
[423000023,1779736239000,-500.0,8.219e-05,2]
[423000010,1779736239000,-500.0,8.219e-05,2]
[422999994,1779736239000,-500.0,8.219e-05,2]
[423000018,1779736239000,-500.0,8.219e-05,2]
[422999981,1779736239000,-300.0,6.924e-05,2]
[422999991,1779736239000,-160.0,8.178e-05,2]
[422999992,1779736239000,-559.5825,8.219e-05,2]
[422999983,1779736239000,-300.0,7.201e-05,2]
[422999982,1779736239000,-789.081387,7.176e-05,2]
[422999993,1779736239000,-507.13,8.219e-05,2]
[422999988,1779736239000,-335.92591364,8e-05,2]
[422999986,1779736239000,-473.85828821,7.953e-05,2]
[422999987,1779736239000,-335.92591364,8e-05,2]
[422999990,1779736239000,-160.0,8.178e-05,2]
[422999989,1779736239000,-160.0,8.178e-05,2]
[422999985,1779736239000,-789.081387,7.435e-05,2]
[422999984,1779736239000,-300.0,7.201e-05,2]
[423000009,1779736239000,-500.0,8.219e-05,2]
[422999997,1779736239000,-730.66,8.219e-05,2]
[422999999,1779736239000,-1439.59,8.219e-05,2]
[422999998,1779736239000,-500.0,8.219e-05,2]
[423000000,1779736239000,-642.86,8.219e-05,2]
[423000001,1779736239000,-500.0,8.219e-05,2]
[423000003,1779736239000,-500.0,8.219e-05,2]
[422999995,1779736239000,-500.0,8.219e-05,2]
[423000005,1779736239000,-500.0,8.219e-05,2]
[423000004,1779736239000,-500.0,8.219e-05,2]
[423000002,1779736239000,-1507.02,8.219e-05,2]
[423000006,1779736239000,-526.95,8.219e-05,2]
[423000007,1779736239000,-500.0,8.219e-05,2]
[423000008,1779736239000,-500.0,8.219e-05,2]
[423000016,1779736239000,-500.0,8.219e-05,2]
[422999996,1779736239000,-500.0,8.219e-05,2]
[423000044,1779736239000,-500.0,8.219e-05,2]
[423000056,1779736239000,-999.61,8.219e-05,2]
[423000042,1779736239000,-500.57254455,8.219e-05,2]
[423000073,1779736239000,-500.0,8.219e-05,2]
[423000071,1779736239000,-500.0,8.219e-05,2]
[423000074,1779736239000,-500.0,8.219e-05,2]
[423000082,1779736239000,-1184.04,8.219e-05,2]
[423000083,1779736239000,-500.0,8.219e-05,2]
[423000084,1779736239000,-683.75,8.219e-05,2]
[423000092,1779736239000,-500.0,8.219e-05,2]
[423000091,1779736239000,-1439.16,8.219e-05,2]
[423000089,1779736239000,-500.0,8.219e-05,2]
[423000085,1779736239000,-500.0,8.219e-05,2]
[423000094,1779736239000,-500.0,8.219e-05,2]
[423000086,1779736239000,-502.18290117,8.219e-05,2]
[423000087,1779736239000,-778.66,8.219e-05,2]
[423000076,1779736239000,-500.0,8.219e-05,2]
[423000088,1779736239000,-500.0,8.219e-05,2]
[423000093,1779736239000,-500.0,8.219e-05,2]
[423000099,1779736239000,-500.0,8.219e-05,2]
[423000101,1779736239000,-500.0,8.219e-05,2]
[423000095,1779736239000,-232.92854525,8.219e-05,2]
[423000104,1779736239000,-500.0,8.219e-05,2]
[423000096,1779736239000,-440.54017475,8.219e-05,2]
[423000098,1779736239000,-500.0,8.219e-05,2]
[423000105,1779736239000,-500.0,8.219e-05,2]
[423000106,1779736239000,-500.0,8.219e-05,2]
[423000097,1779736239000,-190.12949262,8.219e-05,2]
[423000102,1779736239000,-500.0,8.219e-05,2]
[423000103,1779736239000,-500.0,8.219e-05,2]
[423000038,1779736239000,-500.0,8.219e-05,2]
[423000090,1779736239000,-500.0,8.219e-05,2]
[423000072,1779736239000,-340.78338378,8.219e-05,2]